fUSD/lending_fUSD_20250204
["ID","MTS","AMOUNT","RATE_DAILY","PERIOD"]
[351625992,1738671039492,-500.0,9.443e-05,2]
[351625993,1738671039501,-500.0,9.443e-05,2]
[351625994,1738671039511,-500.0,9.443e-05,2]
[351625995,1738671039520,-500.0,9.443e-05,2]
[351625996,1738671039530,-500.0,9.443e-05,2]
[351625997,1738671039539,-500.0,9.443e-05,2]
[351625998,1738671039549,-500.0,9.443e-05,2]
[351625999,1738671039559,-344.14954226,9.443e-05,2]
[351626000,1738671039568,-1000.0,9.5e-05,2]
[351626001,1738671039578,-711.39,9.578e-05,2]
[351626002,1738671039588,-500.0,9.578e-05,2]
[351626003,1738671039598,-500.0,9.578e-05,2]
[351626004,1738671039607,-500.0,9.578e-05,2]
[351626005,1738671039616,-290.358224,9.578e-05,2]
[351626006,1738671039625,-553.26,9.578e-05,2]
[351626007,1738671039635,-500.0,9.578e-05,2]
[351626008,1738671039644,-284.152651,9.578e-05,2]
[351626009,1738671039654,-500.0,9.578e-05,2]
[351626010,1738671039663,-500.0,9.578e-05,2]
[351626011,1738671039672,-500.0,9.578e-05,2]
[351626012,1738671039682,-500.0,9.578e-05,2]
[351626013,1738671039691,-576.48,9.578e-05,2]
[351626014,1738671039700,-516.03,9.578e-05,2]
[351626015,1738671039709,-500.0,9.578e-05,2]
[351626016,1738671039718,-500.0,9.578e-05,2]
[351626017,1738671039727,-679.86,9.578e-05,2]
[351626018,1738671039736,-500.0,9.578e-05,2]
[351626019,1738671039746,-2134.46,9.578e-05,2]
[351626020,1738671039755,-1126.43,9.578e-05,2]
[351626021,1738671039769,-500.0,9.578e-05,2]
[351626022,1738671039779,-753.53,9.578e-05,2]
[351626023,1738671039791,-1178.89,9.578e-05,2]
[351626024,1738671039802,-553.24,9.578e-05,2]
[351626025,1738671039812,-561.07,9.578e-05,2]
[351626026,1738671039824,-1116.23,9.578e-05,2]
[351626027,1738671039834,-567.43,9.578e-05,2]
[351626028,1738671039843,-656.64,9.578e-05,2]
[351626029,1738671039854,-500.0,9.578e-05,2]
[351626030,1738671039865,-760.91,9.578e-05,2]
[351626031,1738671039875,-500.0,9.578e-05,2]
[351626032,1738671039888,-500.0,9.578e-05,2]
[351626033,1738671039899,-500.0,9.578e-05,2]
[351626034,1738671039909,-558.21,9.578e-05,2]
[351626035,1738671039919,-500.0,9.578e-05,2]
[351626036,1738671039928,-671.84,9.578e-05,2]
[351626037,1738671039938,-977.25,9.578e-05,2]
[351626038,1738671039947,-500.0,9.578e-05,2]
[351626039,1738671039956,-913.88,9.578e-05,2]
[351626040,1738671039965,-500.0,9.578e-05,2]
[351626042,1738671039975,-505.12,9.578e-05,2]
[351626043,1738671039984,-500.0,9.578e-05,2]
[351626044,1738671039993,-968.75,9.578e-05,2]
[351626045,1738671040002,-850.03,9.578e-05,2]
[351626046,1738671040011,-654.23,9.578e-05,2]
[351626047,1738671040020,-1366.92,9.578e-05,2]
[351626049,1738671040029,-571.27,9.578e-05,2]
[351626050,1738671040041,-500.0,9.578e-05,2]
[351626051,1738671040051,-500.0,9.578e-05,2]
[351626052,1738671040060,-546.58,9.578e-05,2]
[351626053,1738671040071,-562.18,9.578e-05,2]
[351626054,1738671040081,-500.0,9.578e-05,2]
[351626055,1738671040090,-500.0,9.578e-05,2]
[351626056,1738671040100,-819.01,9.578e-05,2]
[351626057,1738671040110,-500.0,9.578e-05,2]
[351626058,1738671040119,-534.5,9.578e-05,2]
[351626059,1738671040128,-500.0,9.578e-05,2]
[351626060,1738671040138,-500.0,9.578e-05,2]
[351626061,1738671040148,-472.90299359,9.578e-05,2]
[351626062,1738671040158,-500.0,9.578e-05,2]
[351626063,1738671040168,-500.0,9.578e-05,2]
[351626064,1738671040177,-500.0,9.578e-05,2]
[351626065,1738671040187,-500.0,9.578e-05,2]
[351626066,1738671040196,-500.0,9.578e-05,2]
[351626067,1738671040205,-500.0,9.578e-05,2]
[351626068,1738671040215,-500.0,9.579e-05,2]
[351626069,1738671040224,-500.0,9.579e-05,2]
[351626070,1738671040233,-500.0,9.579e-05,2]
[351626071,1738671040243,-500.0,9.579e-05,2]
[351626072,1738671040253,-500.0,9.579e-05,2]
[351626073,1738671040262,-500.0,9.579e-05,2]
[351626074,1738671040272,-500.0,9.579e-05,2]
[351626075,1738671040281,-500.0,9.579e-05,2]
[351626076,1738671040292,-500.0,9.579e-05,2]
[351626077,1738671040302,-500.0,9.579e-05,2]
[351626078,1738671040311,-500.0,9.579e-05,2]
[351626079,1738671040321,-500.0,9.579e-05,2]
[351626080,1738671040330,-500.0,9.579e-05,2]
[351626081,1738671040340,-500.0,9.579e-05,2]
[351626082,1738671040350,-500.0,9.579e-05,2]
[351626083,1738671040360,-500.0,9.579e-05,2]
[351626084,1738671040370,-500.0,9.579e-05,2]
[351626085,1738671040381,-3532.0,9.579e-05,2]
[351626086,1738671040390,-500.0,9.579e-05,2]
[351626087,1738671040399,-500.0,9.579e-05,2]
[351626088,1738671040409,-500.0,9.579e-05,2]
[351626089,1738671040419,-500.0,9.579e-05,2]
[351626090,1738671040428,-500.0,9.579e-05,2]
[351626091,1738671040438,-500.0,9.579e-05,2]
[351626092,1738671040447,-500.0,9.579e-05,2]
[351626093,1738671040457,-500.0,9.579e-05,2]
[351626094,1738671040466,-500.0,9.579e-05,2]
[351626095,1738671040476,-500.0,9.579e-05,2]
[351626096,1738671040486,-500.0,9.579e-05,2]
[351626097,1738671040496,-500.0,9.579e-05,2]
[351626098,1738671040505,-500.0,9.579e-05,2]
[351626099,1738671040515,-500.0,9.579e-05,2]
[351626100,1738671040525,-500.0,9.579e-05,2]
[351626101,1738671040536,-500.0,9.579e-05,2]
[351626102,1738671040545,-500.0,9.579e-05,2]
[351626103,1738671040555,-500.0,9.579e-05,2]
[351626104,1738671040564,-500.0,9.579e-05,2]
[351626105,1738671040575,-500.0,9.579e-05,2]
[351626106,1738671040585,-500.0,9.579e-05,2]
[351626107,1738671040595,-500.0,9.579e-05,2]
[351626108,1738671040605,-500.0,9.579e-05,2]
[351626109,1738671040615,-500.0,9.579e-05,2]
[351626110,1738671040624,-500.0,9.579e-05,2]
[351626111,1738671040634,-500.0,9.579e-05,2]
[351626112,1738671040644,-500.0,9.579e-05,2]
[351626113,1738671040653,-500.0,9.579e-05,2]
[351626114,1738671040663,-500.0,9.579e-05,2]
[351626115,1738671040672,-500.0,9.579e-05,2]
[351626116,1738671040682,-500.0,9.579e-05,2]
[351626117,1738671040691,-500.0,9.579e-05,2]
[351626118,1738671040701,-500.0,9.579e-05,2]
[351626119,1738671040711,-500.0,9.579e-05,2]
[351626120,1738671040721,-500.0,9.579e-05,2]
[351626121,1738671040730,-500.0,9.579e-05,2]
[351626122,1738671040740,-500.0,9.579e-05,2]
[351626123,1738671040749,-500.0,9.579e-05,2]
[351626124,1738671040759,-500.0,9.579e-05,2]
[351626125,1738671040769,-500.0,9.579e-05,2]
[351626126,1738671040779,-500.0,9.579e-05,2]
[351626127,1738671040791,-500.0,9.579e-05,2]
[351626128,1738671040801,-500.0,9.579e-05,2]
[351626129,1738671040811,-500.0,9.579e-05,2]
[351626130,1738671040823,-500.0,9.579e-05,2]
[351626131,1738671040833,-500.0,9.579e-05,2]
[351626132,1738671040842,-500.0,9.579e-05,2]
[351626133,1738671040853,-94.27469041,9.579e-05,2]
[351626134,1738671041363,-404.9264144,9.579e-05,2]
[351626135,1738671041374,-0.79889519,9.579e-05,2]
[351626136,1738671041383,-500.0,9.579e-05,2]
[351626137,1738671041393,-500.0,9.579e-05,2]
[351626138,1738671041402,-500.0,9.579e-05,2]
[351626139,1738671041411,-500.0,9.579e-05,2]
[351626140,1738671041420,-500.0,9.579e-05,2]
[351626141,1738671041430,-500.0,9.579e-05,2]
[351626142,1738671041439,-500.0,9.579e-05,2]
[351626143,1738671041448,-500.0,9.579e-05,2]
[351626144,1738671041457,-500.0,9.579e-05,2]
[351626145,1738671041466,-500.0,9.579e-05,2]
[351626146,1738671041475,-500.0,9.579e-05,2]
[351626147,1738671041485,-500.0,9.579e-05,2]
[351626148,1738671041494,-500.0,9.579e-05,2]
[351626149,1738671041503,-550.97,9.579e-05,2]
[351626150,1738671041513,-544.51,9.579e-05,2]
[351626151,1738671041523,-772.1,9.579e-05,2]
[351626152,1738671041533,-500.0,9.579e-05,2]
[351626153,1738671041543,-636.44784037,9.579e-05,2]
[351626154,1738671041552,-513.35,9.579e-05,2]
[351626155,1738671041561,-500.0,9.579e-05,2]
[351626156,1738671041571,-605.83,9.579e-05,2]
[351626157,1738671041580,-500.0,9.579e-05,2]
[351626158,1738671041589,-738.32,9.579e-05,2]
[351626159,1738671041599,-500.0,9.579e-05,2]
[351626160,1738671041609,-1000.0,9.579e-05,2]
[351626161,1738671041618,-500.0,9.579e-05,2]
[351626162,1738671041627,-618.67,9.579e-05,2]
[351626163,1738671041637,-500.0,9.579e-05,2]
[351626164,1738671041646,-500.0,9.579e-05,2]
[351626165,1738671041655,-500.0,9.579e-05,2]
[351626166,1738671041665,-500.0,9.579e-05,2]
[351626167,1738671041674,-540.97,9.579e-05,2]
[351626168,1738671041683,-703.39,9.579e-05,2]
[351626169,1738671041692,-693.95,9.579e-05,2]
[351626170,1738671041702,-500.0,9.579e-05,2]
[351626171,1738671041711,-500.0,9.579e-05,2]
[351626172,1738671041720,-500.0,9.579e-05,2]
[351626173,1738671041730,-500.0,9.579e-05,2]
[351626174,1738671041740,-537.36,9.579e-05,2]
[351626175,1738671041749,-714.27,9.579e-05,2]
[351626176,1738671041759,-658.4,9.579e-05,2]
[351626177,1738671041768,-500.0,9.579e-05,2]
[351626178,1738671041777,-382.06250382,9.579e-05,2]
[351626179,1738671041788,-500.0,9.579e-05,2]
[351626180,1738671041797,-500.0,9.579e-05,2]
[351626181,1738671041810,-500.0,9.579e-05,2]
[351626182,1738671041819,-500.0,9.579e-05,2]
[351626183,1738671041828,-528.66,9.579e-05,2]
[351626184,1738671041837,-500.0,9.579e-05,2]
[351626185,1738671041850,-684.4,9.579e-05,2]
[351626186,1738671041861,-500.0,9.579e-05,2]
[351626187,1738671041870,-500.0,9.579e-05,2]
[351626188,1738671041880,-524.42,9.579e-05,2]
[351626189,1738671041889,-935.07,9.579e-05,2]
[351626190,1738671041899,-500.0,9.579e-05,2]
[351626191,1738671041908,-500.0,9.579e-05,2]
[351626192,1738671041917,-500.0,9.579e-05,2]
[351626193,1738671041926,-500.0,9.579e-05,2]
[351626194,1738671041935,-798.23,9.579e-05,2]
[351626195,1738671041944,-500.0,9.579e-05,2]
[351626196,1738671041953,-500.0,9.579e-05,2]
[351626197,1738671041963,-500.0,9.579e-05,2]
[351626198,1738671041972,-500.0,9.579e-05,2]
[351626199,1738671041981,-1206.43,9.579e-05,2]
[351626200,1738671041991,-500.0,9.579e-05,2]
[351626201,1738671042000,-500.0,9.579e-05,2]
[351626202,1738671042010,-500.0,9.579e-05,2]
[351626203,1738671042020,-500.0,9.579e-05,2]
[351626204,1738671042030,-500.0,9.579e-05,2]
[351626205,1738671042039,-662.35,9.579e-05,2]
[351626206,1738671042050,-501.71955212,9.579e-05,2]
[351626207,1738671042059,-500.0,9.579e-05,2]
[351626208,1738671042068,-500.0,9.579e-05,2]
[351626209,1738671042077,-500.0,9.58e-05,2]
[351626210,1738671042087,-500.0,9.58e-05,2]
[351626211,1738671042096,-500.0,9.58e-05,2]
[351626212,1738671042105,-500.0,9.58e-05,2]
[351626213,1738671042115,-500.0,9.58e-05,2]
[351626214,1738671042124,-290.39797078,9.58e-05,2]
[351626215,1738671042133,-500.0,9.58e-05,2]
[351626216,1738671042143,-500.0,9.58e-05,2]
[351626217,1738671042152,-500.0,9.58e-05,2]
[351626218,1738671042162,-500.0,9.58e-05,2]
[351626219,1738671042171,-679.95,9.58e-05,2]
[351626220,1738671042181,-500.0,9.58e-05,2]
[351626221,1738671042190,-500.0,9.58e-05,2]
[351626222,1738671042200,-513.39565848,9.58e-05,2]
[351626223,1738671042209,-500.0,9.58e-05,2]
[351626224,1738671042219,-500.0,9.58e-05,2]
[351626225,1738671042228,-500.0,9.58e-05,2]
[351626226,1738671042237,-500.0,9.58e-05,2]
[351626227,1738671042246,-500.0,9.58e-05,2]
[351626228,1738671042256,-500.0,9.58e-05,2]
[351626229,1738671042266,-500.0,9.58e-05,2]
[351626230,1738671042275,-500.0,9.58e-05,2]
[351626231,1738671042285,-500.0,9.58e-05,2]
[351626232,1738671042296,-500.0,9.58e-05,2]
[351626233,1738671042305,-500.0,9.58e-05,2]
[351626234,1738671042314,-500.0,9.58e-05,2]
[351626235,1738671042323,-500.0,9.58e-05,2]
[351626236,1738671042332,-500.0,9.58e-05,2]
[351626237,1738671042342,-500.0,9.58e-05,2]
[351626238,1738671042352,-500.0,9.58e-05,2]
[351626239,1738671042362,-500.0,9.58e-05,2]
[351626240,1738671042371,-500.0,9.58e-05,2]
[351626241,1738671042380,-500.0,9.58e-05,2]
[351626242,1738671042390,-500.0,9.58e-05,2]
[351626243,1738671042401,-870.484,9.586e-05,2]
[351626244,1738671042411,-175.08,9.671e-05,2]
[351626245,1738671042420,-1000.0,9.711e-05,2]
[351626246,1738671042430,-711.39,9.715e-05,2]
[351626247,1738671042439,-500.0,9.715e-05,2]
[351626248,1738671042448,-500.0,9.715e-05,2]
[351626249,1738671042458,-500.0,9.715e-05,2]
[351626250,1738671042469,-290.358224,9.715e-05,2]
[351626251,1738671042478,-553.26,9.715e-05,2]
[351626252,1738671042488,-500.0,9.715e-05,2]
[351626253,1738671042497,-284.152651,9.715e-05,2]
[351626254,1738671042507,-500.0,9.715e-05,2]
[351626255,1738671042516,-500.0,9.715e-05,2]
[351626256,1738671042525,-500.0,9.715e-05,2]
[351626257,1738671042538,-500.0,9.715e-05,2]
[351626258,1738671042547,-576.48,9.715e-05,2]
[351626259,1738671042557,-516.03,9.715e-05,2]
[351626260,1738671042566,-500.0,9.715e-05,2]
[351626261,1738671042576,-500.0,9.715e-05,2]
[351626262,1738671042588,-679.86,9.715e-05,2]
[351626263,1738671042597,-500.0,9.715e-05,2]
[351626264,1738671042607,-2134.46,9.715e-05,2]
[351626265,1738671042617,-1126.43,9.715e-05,2]
[351626266,1738671042627,-500.0,9.715e-05,2]
[351626267,1738671042637,-753.53,9.715e-05,2]
[351626268,1738671042647,-1178.89,9.715e-05,2]
[351626269,1738671042657,-553.24,9.715e-05,2]
[351626270,1738671042667,-561.07,9.715e-05,2]
[351626271,1738671042677,-1116.23,9.715e-05,2]
[351626272,1738671042687,-567.43,9.715e-05,2]
[351626273,1738671042696,-656.64,9.715e-05,2]
[351626274,1738671042706,-500.0,9.715e-05,2]
[351626275,1738671042715,-760.91,9.715e-05,2]
[351626276,1738671042725,-500.0,9.715e-05,2]
[351626277,1738671042735,-500.0,9.715e-05,2]
[351626278,1738671042744,-500.0,9.715e-05,2]
[351626279,1738671042754,-558.21,9.715e-05,2]
[351626280,1738671042763,-500.0,9.715e-05,2]
[351626281,1738671042777,-671.84,9.715e-05,2]
[351626282,1738671042786,-977.25,9.715e-05,2]
[351626283,1738671042796,-500.0,9.715e-05,2]
[351626284,1738671042806,-913.88,9.715e-05,2]
[351626285,1738671042816,-500.0,9.715e-05,2]
[351626286,1738671042825,-505.12,9.715e-05,2]
[351626287,1738671042835,-500.0,9.715e-05,2]
[351626288,1738671042844,-968.75,9.715e-05,2]
[351626289,1738671042854,-850.03,9.715e-05,2]
[351626290,1738671042863,-654.23,9.715e-05,2]
[351626291,1738671042873,-1366.92,9.715e-05,2]
[351626292,1738671042882,-571.27,9.715e-05,2]
[351626293,1738671042892,-500.0,9.715e-05,2]
[351626294,1738671042901,-500.0,9.715e-05,2]
[351626295,1738671042910,-546.58,9.715e-05,2]
[351626296,1738671042920,-562.18,9.715e-05,2]
[351626297,1738671042929,-500.0,9.715e-05,2]
[351626298,1738671042938,-500.0,9.715e-05,2]
[351626299,1738671042948,-819.01,9.715e-05,2]
[351626300,1738671042958,-500.0,9.715e-05,2]
[351626301,1738671042967,-534.5,9.715e-05,2]
[351626302,1738671042977,-500.0,9.715e-05,2]
[351626303,1738671042986,-500.0,9.715e-05,2]
[351626304,1738671042995,-500.0,9.715e-05,2]
[351626306,1738671043005,-500.0,9.715e-05,2]
[351626308,1738671043014,-500.0,9.715e-05,2]
[351626310,1738671043024,-294.1189346,9.715e-05,2]
[351626312,1738671043034,-500.0,9.715e-05,2]
[351626314,1738671043044,-103.76376964,9.715e-05,2]
[351626324,1738671043100,-396.23623036,9.715e-05,2]
[351626327,1738671043109,-500.0,9.715e-05,2]
[351626330,1738671043118,-500.0,9.716e-05,2]
[351626332,1738671043128,-500.0,9.716e-05,2]
[351626334,1738671043137,-500.0,9.716e-05,2]
[351626336,1738671043147,-444.66781147,9.716e-05,2]
[351626338,1738671043156,-500.0,9.716e-05,2]
[351626340,1738671043165,-500.0,9.716e-05,2]
[351626342,1738671043175,-500.0,9.716e-05,2]
[351626344,1738671043184,-500.0,9.716e-05,2]
[351626346,1738671043193,-500.0,9.716e-05,2]
[351626348,1738671043202,-500.0,9.716e-05,2]
[351626350,1738671043211,-500.0,9.716e-05,2]
[351626352,1738671043221,-500.0,9.716e-05,2]
[351626354,1738671043230,-500.0,9.716e-05,2]
[351626356,1738671043240,-500.0,9.716e-05,2]
[351626358,1738671043249,-500.0,9.716e-05,2]
[351626360,1738671043258,-500.0,9.716e-05,2]
[351626362,1738671043267,-1060.59595817,9.716e-05,2]
[351626365,1738671043286,-2471.40404183,9.716e-05,2]
[351626367,1738671043297,-500.0,9.716e-05,2]
[351626369,1738671043307,-500.0,9.716e-05,2]
[351626371,1738671043316,-500.0,9.716e-05,2]
[351626373,1738671043325,-500.0,9.716e-05,2]
[351626375,1738671043334,-500.0,9.716e-05,2]
[351626377,1738671043344,-500.0,9.716e-05,2]
[351626379,1738671043353,-500.0,9.716e-05,2]
[351626381,1738671043362,-500.0,9.716e-05,2]
[351626383,1738671043372,-500.0,9.716e-05,2]
[351626385,1738671043381,-500.0,9.716e-05,2]
[351626387,1738671043390,-500.0,9.716e-05,2]
[351626389,1738671043399,-500.0,9.716e-05,2]
[351626391,1738671043408,-500.0,9.716e-05,2]
[351626393,1738671043417,-262.03672413,9.716e-05,2]
[351626395,1738671043427,-500.0,9.716e-05,2]
[351626396,1738671043437,-500.0,9.716e-05,2]
[351626397,1738671043446,-500.0,9.716e-05,2]
[351626398,1738671043455,-500.0,9.716e-05,2]
[351626399,1738671043464,-500.0,9.716e-05,2]
[351626400,1738671043475,-500.0,9.716e-05,2]
[351626401,1738671043485,-500.0,9.716e-05,2]
[351626402,1738671043496,-418.95881281,9.716e-05,2]
[351626403,1738671043506,-500.0,9.716e-05,2]
[351626404,1738671043515,-500.0,9.716e-05,2]
[351626405,1738671043525,-500.0,9.716e-05,2]
[351626406,1738671043536,-500.0,9.716e-05,2]
[351626407,1738671043548,-500.0,9.716e-05,2]
[351626408,1738671043559,-500.0,9.716e-05,2]
[351626409,1738671043569,-500.0,9.716e-05,2]
[351626410,1738671043578,-500.0,9.716e-05,2]
[351626411,1738671043590,-500.0,9.716e-05,2]
[351626412,1738671043599,-500.0,9.716e-05,2]
[351626413,1738671043608,-500.0,9.716e-05,2]
[351626414,1738671043617,-500.0,9.716e-05,2]
[351626415,1738671043627,-500.0,9.716e-05,2]
[351626416,1738671043637,-500.0,9.716e-05,2]
[351626417,1738671043647,-500.0,9.716e-05,2]
[351626418,1738671043656,-500.0,9.716e-05,2]
[351626419,1738671043666,-500.0,9.716e-05,2]
[351626420,1738671043676,-500.0,9.716e-05,2]
[351626421,1738671043685,-500.0,9.716e-05,2]
[351626422,1738671043695,-500.0,9.716e-05,2]
[351626423,1738671043704,-371.48799354,9.716e-05,2]
[351626424,1738671043713,-500.0,9.716e-05,2]
[351626425,1738671043723,-500.0,9.716e-05,2]
[351626426,1738671043732,-500.0,9.716e-05,2]
[351626427,1738671043742,-500.0,9.716e-05,2]
[351626428,1738671043751,-487.18457897,9.716e-05,2]
[351626430,1738671043762,-500.0,9.716e-05,2]
[351626432,1738671043772,-500.0,9.716e-05,2]
[351626433,1738671043782,-500.0,9.716e-05,2]
[351626435,1738671043792,-500.0,9.716e-05,2]
[351626436,1738671043802,-500.0,9.716e-05,2]
[351626437,1738671043814,-500.0,9.716e-05,2]
[351626438,1738671043824,-500.0,9.716e-05,2]
[351626439,1738671043834,-500.0,9.716e-05,2]
[351626440,1738671043844,-500.0,9.716e-05,2]
[351626441,1738671043854,-500.0,9.716e-05,2]
[351626442,1738671043863,-500.0,9.716e-05,2]
[351626443,1738671043873,-500.0,9.716e-05,2]
[351626444,1738671043883,-550.97,9.716e-05,2]
[351626445,1738671043893,-544.51,9.716e-05,2]
[351626446,1738671043904,-772.1,9.716e-05,2]
[351626447,1738671043914,-500.0,9.716e-05,2]
[351626448,1738671043924,-513.35,9.716e-05,2]
[351626449,1738671043934,-500.0,9.716e-05,2]
[351626450,1738671043943,-605.83,9.716e-05,2]
[351626451,1738671043952,-500.0,9.716e-05,2]
[351626452,1738671043962,-738.32,9.716e-05,2]
[351626453,1738671043972,-500.0,9.716e-05,2]
[351626454,1738671043981,-1000.0,9.716e-05,2]
[351626455,1738671043991,-500.0,9.716e-05,2]
[351626456,1738671044000,-618.67,9.716e-05,2]
[351626457,1738671044009,-500.0,9.716e-05,2]
[351626458,1738671044019,-500.0,9.716e-05,2]
[351626459,1738671044028,-500.0,9.716e-05,2]
[351626460,1738671044037,-500.0,9.716e-05,2]
[351626461,1738671044047,-540.97,9.716e-05,2]
[351626462,1738671044056,-703.39,9.716e-05,2]
[351626463,1738671044066,-693.95,9.716e-05,2]
[351626464,1738671044076,-500.0,9.716e-05,2]
[351626465,1738671044086,-500.0,9.716e-05,2]
[351626466,1738671044095,-500.0,9.716e-05,2]
[351626467,1738671044105,-323.58371323,9.716e-05,2]
[351626468,1738671044115,-537.36,9.716e-05,2]
[351626469,1738671044125,-714.27,9.716e-05,2]
[351626470,1738671044135,-658.4,9.716e-05,2]
[351626471,1738671044144,-500.0,9.716e-05,2]
[351626472,1738671044154,-500.0,9.716e-05,2]
[351626473,1738671044163,-516.24456046,9.716e-05,2]
[351626474,1738671044172,-500.0,9.716e-05,2]
[351626475,1738671044182,-44.00076141,9.716e-05,2]
[351626476,1738671044194,-455.99923859,9.716e-05,2]
[351626477,1738671044203,-528.66,9.716e-05,2]
[351626478,1738671044212,-500.0,9.716e-05,2]
[351626479,1738671044222,-5.58076141,9.716e-05,2]
[351626480,1738671044938,-458.6385,9.442e-05,2]
[351626481,1738671044951,-41.3615,9.442e-05,2]
[351626482,1738671044960,-379.82075403,9.442e-05,2]
[351626483,1738671044972,-176.07924597,9.442e-05,2]
[351626484,1738671044983,-500.0,9.578e-05,2]
[351626485,1738671044993,-500.0,9.578e-05,2]
[351626486,1738671045002,-500.0,9.578e-05,2]
[351626487,1738671045012,-500.0,9.715e-05,2]
[351626488,1738671045023,-678.81923859,9.716e-05,2]
[351626489,1738671045032,-500.0,9.716e-05,2]
[351626490,1738671045044,-500.0,9.716e-05,2]
[351626491,1738671045053,-524.42,9.716e-05,2]
[351626492,1738671045249,-935.07,9.716e-05,2]
[351626493,1738671045295,-500.0,9.716e-05,2]
[351626494,1738671045305,-500.0,9.716e-05,2]
[351626495,1738671045315,-500.0,9.716e-05,2]
[351626496,1738671045324,-500.0,9.716e-05,2]
[351626497,1738671045333,-798.23,9.716e-05,2]
[351626498,1738671045343,-184.99182679,9.716e-05,2]
[351626499,1738671045353,-381.03896915,9.716e-05,2]
[351626500,1738671045363,-500.0,9.716e-05,2]
[351626501,1738671045372,-206.30112586,9.716e-05,2]
[351626502,1738671045382,-1206.43,9.716e-05,2]
[351626503,1738671045391,-500.0,9.716e-05,2]
[351626504,1738671045401,-500.0,9.716e-05,2]
[351626505,1738671045411,-500.0,9.716e-05,2]
[351626506,1738671045420,-500.0,9.716e-05,2]
[351626507,1738671045430,-286.62944618,9.716e-05,2]
[351626508,1738671045440,-662.35,9.716e-05,2]
[351626509,1738671045449,-500.0,9.716e-05,2]
[351626510,1738671045459,-500.0,9.717e-05,2]
[351626511,1738671045469,-500.0,9.717e-05,2]
[351626512,1738671045478,-500.0,9.717e-05,2]
[351626513,1738671045488,-500.0,9.717e-05,2]
[351626514,1738671045498,-500.0,9.717e-05,2]
[351626515,1738671045509,-245.33396663,9.717e-05,2]
[351626516,1738671045519,-500.0,9.717e-05,2]
[351626517,1738671045529,-184.18103158,9.717e-05,2]
[351626518,1738671045542,-679.95,9.717e-05,2]
[351626519,1738671045552,-500.0,9.717e-05,2]
[351626520,1738671045562,-500.0,9.717e-05,2]
[351626521,1738671045573,-500.0,9.717e-05,2]
[351626522,1738671045582,-500.0,9.717e-05,2]
[351626523,1738671045591,-645.75846126,9.717e-05,2]
[351626524,1738671045602,-500.0,9.717e-05,2]
[351626525,1738671045612,-500.0,9.717e-05,2]
[351626526,1738671045622,-500.0,9.717e-05,2]
[351626527,1738671045632,-500.0,9.717e-05,2]
[351626528,1738671045641,-500.0,9.717e-05,2]
[351626529,1738671045651,-500.0,9.717e-05,2]
[351626530,1738671045660,-500.0,9.717e-05,2]
[351626531,1738671045670,-500.0,9.717e-05,2]
[351626532,1738671045679,-500.0,9.717e-05,2]
[351626533,1738671045689,-500.0,9.717e-05,2]
[351626534,1738671045698,-500.0,9.717e-05,2]
[351626535,1738671045707,-500.0,9.717e-05,2]
[351626536,1738671045717,-500.0,9.717e-05,2]
[351626537,1738671045727,-500.0,9.717e-05,2]
[351626538,1738671045736,-500.0,9.717e-05,2]
[351626539,1738671045746,-500.0,9.717e-05,2]
[351626540,1738671045755,-500.0,9.717e-05,2]
[351626541,1738671045765,-1202.7592127,9.8e-05,2]
[351626542,1738671045774,-431.43955898,9.833e-05,2]
[351626543,1738671045783,-115.70597148,9.834e-05,2]
[351626544,1738671045797,-45.23115252,9.834e-05,2]
[351626545,1738671045811,-178.819026,9.834e-05,2]
[351626546,1738671045821,-1000.0,9.838e-05,4]
[351626547,1738671045830,-500.0,9.852e-05,2]